Workbook

Sheet Índice | Index
M4: Dados Históricos | Historical Data
M7: 1. DRE e EBITDA | Income Statement and EBTIDA
M9: 2. Balanço Patrimonial | Balance Sheet
M11: 3. Fluxo de Caixa | Cash Flow
M13: 4. Receita (Unidade e Região) | Revenue (Business Unit and Region)
M15: 5. Dados da Companhia | Company Information
M17: 6. Ressalva | Disclaimer

Sheet 1. DRE | IS - EBITDA
AH1: Voltar | Back
B2: DRE Consolidada | Consolidated Income Statement
B5: Demonstração de Resultado | C5: Income Statement | D5: 2018 | E5: 2019 | F5: 1T20 | G5: 2T20 | H5: 3T20 | I5: 4T20 | J5: 2020 | K5: 1T21 | L5: 2T21 | M5: 3T21 | N5: 4T21 | O5: 2021 | P5: 1T22 | Q5: 2T22 | R5: 3T22 | S5: 4T22 | T5: 2022 | U5: 1T23 | V5: 2T23 | W5: 3T23 | X5: 4T23 | Y5: 2023 | Z5: 1T24 | AA5: 2T24 | AB5: 3T24 | AC5: 4T24 | AD5: 2024 | AE5: 1T25 | AF5: 2T25 | AG5: 1H25
B6: (R$'000) | C6: (R$'000) | F6: =SUBSTITUTE(F5,"T","Q") -> 1Q20 | G6: =SUBSTITUTE(G5,"T","Q") -> 2Q20 | H6: 3Q20 | I6: 4Q20 | K6: =SUBSTITUTE(K5,"T","Q") -> 1Q21 | L6: =SUBSTITUTE(L5,"T","Q") -> 2Q21 | M6: =SUBSTITUTE(M5,"T","Q") -> 3Q21 | N6: =SUBSTITUTE(N5,"T","Q") -> 4Q21 | P6: =SUBSTITUTE(P5,"T","Q") -> 1Q22 | Q6: =SUBSTITUTE(Q5,"T","Q") -> 2Q22 | R6: =SUBSTITUTE(R5,"T","Q") -> 3Q22 | S6: =SUBSTITUTE(S5,"T","Q") -> 4Q22 | U6: =SUBSTITUTE(U5,"T","Q") -> 1Q23 | V6: =SUBSTITUTE(V5,"T","Q") -> 2Q23 | W6: =SUBSTITUTE(W5,"T","Q") -> 3Q23 | X6: =SUBSTITUTE(X5,"T","Q") -> 4Q23 | Z6: =SUBSTITUTE(Z5,"T","Q") -> 1Q24 | AA6: =SUBSTITUTE(AA5,"T","Q") -> 2Q24 | AB6: =SUBSTITUTE(AB5,"T","Q") -> 3Q24 | AC6: =SUBSTITUTE(AC5,"T","Q") -> 4Q24 | AE6: =SUBSTITUTE(AE5,"T","Q") -> 1Q25 | AF6: =SUBSTITUTE(AF5,"T","Q") -> 2Q25
B7: Receita líquida | C7: Net revenue | D7: 3701854 | E7: 4828144 | F7: 1526771 | G7: 1205182 | H7: 1352996 | I7: 1638242 | J7: 5723191 | K7: 1923965 | L7: 1499310 | M7: 1667526 | N7: 1977026 | O7: 7067827 | P7: 2176325 | Q7: 1675182 | R7: 2016565 | S7: 2138208 | T7: 8006280 | U7: 2430944 | V7: 1908151 | W7: 2241852 | X7: 2539729 | Y7: 9120676 | Z7: 2830633 | AA7: 2353182 | AB7: 2814355 | AC7: 2975345 | AD7: 10973515 | AE7: 3059428 | AF7: 2713852 | AG7: =SUM(AE7:AF7) -> 5773280
B8: Custo dos produtos vendidos | C8: Cost of goods sold | D8: -1249969 | E8: -1622718 | F8: -504838 | G8: -454125 | H8: -539273 | I8: -626783 | J8: -2125019 | K8: -679737 | L8: -531411 | M8: -591868 | N8: -693768 | O8: -2496784 | P8: -718780 | Q8: -605770 | R8: -687113 | S8: -709135 | T8: -2720798 | U8: -795025 | V8: -681558 | W8: -737512 | X8: -862286 | Y8: -3076381 | Z8: -944366 | AA8: -856325 | AB8: -909354 | AC8: -1051342 | AD8: -3761387 | AE8: -1034176 | AF8: -952947 | AG8: =SUM(AE8:AF8) -> -1987123
B9: Lucro bruto | C9: Gross profit | D9: 2451885 | E9: 3205426 | F9: 1021933 | G9: 751057 | H9: 813723 | I9: 1011459 | J9: 3598172 | K9: 1244228 | L9: 967899 | M9: 1075658 | N9: 1283258 | O9: 4571043 | P9: 1457545 | Q9: 1069412 | R9: 1329452 | S9: 1429073 | T9: 5285482 | U9: 1635919 | V9: 1226593 | W9: 1504340 | X9: 1677443 | Y9: 6044295 | Z9: =SUM(Z7:Z8) -> 1886267 | AA9: =SUM(AA7:AA8) -> 1496857 | AB9: 1905001 | AC9: 1924003 | AD9: 7212128 | AE9: =SUM(AE7:AE8) -> 2025252 | AF9: =SUM(AF7:AF8) -> 1760905 | AG9: 3786157
B11: Despesas | C11: Expenses | D11: -1843426 | E11: -2464065 | F11: -622359 | G11: -584638 | H11: -598401 | I11: -703479 | J11: -2508877 | K11: -760534 | L11: -750789 | M11: -746777 | N11: -860813 | O11: -3118913 | P11: -748651 | Q11: -842121 | R11: -871799 | S11: -1054322 | T11: -3516893 | U11: -1016064 | V11: -1209488 | W11: -1227827 | X11: -1149910 | Y11: -4603289 | Z11: =SUM(Z12:Z16) -> -1325683 | AA11: -1522234 | AB11: -1546524 | AC11: -1418815 | AD11: -5813256 | AE11: =SUM(AE12:AE16) -> -1466318 | AF11: =SUM(AF12:AF16) -> -1601307 | AG11: -3067625
B12: Despesas de vendas | C12: Selling expenses | D12: -1282403 | E12: -1755047 | F12: -464586 | G12: -434305 | H12: -488607 | I12: -420161 | J12: -1807659 | K12: -526531 | L12: -550755 | M12: -546157 | N12: -586549 | O12: -2209992 | P12: -567865 | Q12: -640619 | R12: -651649 | S12: -676441 | T12: -2536574 | U12: -731067 | V12: -857022 | W12: -850397 | X12: -825520 | Y12: -3264006 | Z12: -918011 | AA12: -1062182 | AB12: -1054920 | AC12: -1033286 | AD12: -4068399 | AE12: -995616 | AF12: -1089163 | AG12: -2084779
B13: Despesas administrativas | C13: Administrative expenses | D13: -470531 | E13: -569165 | F13: -150083 | G13: -158089 | H13: -177226 | I13: -154755 | J13: -640153 | K13: -228373 | L13: -203979 | M13: -191752 | N13: -265710 | O13: -889814 | P13: -190028 | Q13: -204356 | R13: -234938 | S13: -385605 | T13: -1014927 | U13: -292965 | V13: -358828 | W13: -378139 | X13: -355813 | Y13: -1385745 | Z13: -406585 | AA13: -445446 | AB13: -510859 | AC13: -417683 | AD13: -1780573 | AE13: -480529 | AF13: -515698 | AG13: -996227
B14: Perda esperada (impairment) do contas a receber | C14: Impairment loss on accounts receivable | D14: -1108 | E14: 903 | F14: -11442 | G14: 2887 | H14: 7449 | I14: 8203 | J14: 7097 | K14: -1022 | L14: -1305 | M14: 106 | N14: -2660 | O14: -4881 | P14: -126 | Q14: -757 | R14: 4268 | S14: -4628 | T14: -1243 | U14: -3890 | V14: -269 | W14: -6453 | X14: -3013 | Y14: -13625 | Z14: -7737 | AA14: -36049 | AB14: -5499 | AC14: 2029 | AD14: -47256 | AE14: -16463 | AF14: -10332 | AG14: -26795
B15: Participação dos colaboradores nos resultados | C15: Profit sharing (employees) | D15: -104773 | E15: -101627 | F15: - | G15: - | H15: - | I15: -133974 | J15: -133974 | K15: - | L15: - | M15: - | N15: - | O15: 0 | P15: - | Q15: - | R15: - | S15: - | T15: 0 | U15: - | V15: - | W15: - | X15: 0 | Y15: 0 | Z15: 0 | AA15: 0 | AB15: 0 | AC15: 0 | AD15: 0 | AE15: 28868 | AF15: 19077 | AG15: 47945
B16: Outras receitas (despesas) | C16: Other revenues (expenses) | D16: 15389 | E16: -39129 | F16: 3752 | G16: 4869 | H16: 59983 | I16: -2792 | J16: 65812 | K16: -4608 | L16: 5250 | M16: -8974 | N16: -5894 | O16: -14226 | P16: 9368 | Q16: 3611 | R16: 10520 | S16: 12352 | T16: 35851 | U16: 11858 | V16: 6631 | W16: 7162 | X16: 34436 | Y16: 60087 | Z16: 6650 | AA16: 21443 | AB16: 24754 | AC16: 30125 | AD16: 82972 | AE16: -2578 | AF16: -5191 | AG16: -7769
B17: Resultado operacional antes do resultado financeiro | C17: Operating income before financial result | D17: 608459 | E17: 741361 | F17: 399574 | G17: 166419 | H17: 215322 | I17: 307980 | J17: 1089295 | K17: 483694 | L17: 217110 | M17: 328881 | N17: 422445 | O17: 1452130 | P17: 708894 | Q17: 227291 | R17: 457653 | S17: 374751 | T17: 1768589 | U17: 619855 | V17: 17105 | W17: 276513 | X17: 527533 | Y17: 1441006 | Z17: =Z9+Z11 -> 560584 | AA17: -25377 | AB17: 358477 | AC17: 505188 | AD17: 1398872 | AE17: =AE9+AE11 -> 558934 | AF17: =AF9+AF11 -> 159598 | AG17: 718532
B19: Resultado financeiro líquido | C19: Net financial result | D19: -23677 | E19: -76606 | F19: -30118 | G19: 16557 | H19: 12679 | I19: -84629 | J19: -85511 | K19: 1906 | L19: -27313 | M19: -48419 | N19: -52160 | O19: -125986 | P19: -56101 | Q19: -72916 | R19: -82006 | S19: -85617 | T19: -296640 | U19: -130381 | V19: -154248 | W19: -176817 | X19: -236804 | Y19: -698250 | Z19: =SUM(Z20:Z21) -> -261334 | AA19: =SUM(AA20:AA21) -> -197789 | AB19: -229222 | AC19: -343376 | AD19: -1031721 | AE19: =SUM(AE20:AE21) -> -257741 | AF19: =SUM(AF20:AF21) -> -316574 | AG19: -574315
B20: Receitas financeiras | C20: Financial revenue | D20: 16104 | E20: 20375 | F20: 54681 | G20: 60231 | H20: 59084 | I20: -68883 | J20: 105113 | K20: 57134 | L20: 11953 | M20: 9237 | N20: 31706 | O20: 110030 | P20: 61376 | Q20: 27051 | R20: 38149 | S20: 49352 | T20: 175928 | U20: 53481 | V20: 194909 | W20: 9770 | X20: 86713 | Y20: 344873 | Z20: 59668 | AA20: 245143 | AB20: 2610 | AC20: 264101 | AD20: 571522 | AE20: 176886 | AF20: 124949 | AG20: 301835
B21: Despesas financeiras | C21: Financial expenses | D21: -39781 | E21: -96981 | F21: -84799 | G21: -43674 | H21: -46405 | I21: -15746 | J21: -190624 | K21: -55228 | L21: -39266 | M21: -57656 | N21: -83866 | O21: -236016 | P21: -117477 | Q21: -99967 | R21: -120155 | S21: -134969 | T21: -472568 | U21: -183862 | V21: -349157 | W21: -186587 | X21: -323517 | Y21: -1043123 | Z21: -321002 | AA21: -442932 | AB21: -231832 | AC21: -607477 | AD21: -1603243 | AE21: -434627 | AF21: -441523 | AG21: -876150
B23: Resultado de equivalência patrimonial | C23: Results from equity-accounted investees | D23: 10998 | E23: 8882 | F23: -767 | G23: -4358 | H23: -810 | I23: 3268 | J23: -2667 | K23: -766 | L23: -536 | M23: -570 | N23: -456 | O23: -2328 | P23: -488 | Q23: -1678 | R23: -575 | S23: -1988 | T23: -4729 | U23: -1271 | V23: -1714 | W23: -2136 | X23: 794 | Y23: -4327 | Z23: -898 | AA23: -612 | AB23: -332 | AC23: 1397 | AD23: -445 | AE23: 395 | AF23: 567 | AG23: 962
B25: Resultado antes do IR e CS | C25: Income before income tax and social contribution | D25: 595780 | E25: 673637 | F25: 368689 | G25: 178618 | H25: 227191 | I25: 226619 | J25: 1001117 | K25: 484834 | L25: 189261 | M25: 279892 | N25: 369829 | O25: 1323816 | P25: 652305 | Q25: 152697 | R25: 375072 | S25: 287146 | T25: 1467220 | U25: 488203 | V25: -138857 | W25: 97560 | X25: 291523 | Y25: 738429 | Z25: =Z17+Z19+Z23 -> 298352 | AA25: -223778 | AB25: 128923 | AC25: 163209 | AD25: 366706 | AE25: =AE17+AE19+AE23 -> 301588 | AF25: =AF17+AF19+AF23 -> -156409 | AG25: 145179
B27: Imposto de renda e contribuição social | C27: Income tax and social contribution | D27: -104163 | E27: -94396 | F27: -59614 | G27: -12194 | H27: -34046 | I27: -46293 | J27: -152147 | K27: -163615 | L27: -76583 | M27: -33081 | N27: -50643 | O27: -323922 | P27: -312714 | Q27: -9600 | R27: -116690 | S27: -27169 | T27: -466173 | U27: -137195 | V27: 39809 | W27: 72654 | X27: -63999 | Y27: -88731 | Z27: -88767 | AA27: 18590 | AB27: -21591 | AC27: -1142 | AD27: -92910 | AE27: -72407 | AF27: 63845 | AG27: -8562
B28: Resultado líquido | C28: Net income | D28: 491617 | E28: 579241 | F28: 309075 | G28: 166424 | H28: 193145 | I28: 180326 | J28: 848970 | K28: 321219 | L28: 112678 | M28: 246811 | N28: 319186 | O28: 999894 | P28: 339591 | Q28: 143097 | R28: 258382 | S28: 259977 | T28: 1001047 | U28: 351008 | V28: -99048 | W28: 170214 | X28: 227524 | Y28: 649698 | Z28: =Z25+Z27 -> 209585 | AA28: -205188 | AB28: 107332 | AC28: 162067 | AD28: 273796 | AE28: =AE25+AE27 -> 229181 | AF28: =AF25+AF27 -> -92564 | AG28: 136617
B30: EBITDA | C30: EBITDA
B31: (R$'000) | C31: (R$'000)
B32: Lucro líquido | C32: Net income | D32: 491617 | E32: 579241 | F32: 309075 | G32: 166424 | H32: 193145 | I32: 180326 | J32: 848970 | K32: 321219 | L32: 112678 | M32: 246811 | N32: 319186 | O32: 999894 | P32: 339591 | Q32: 143097 | R32: 258382 | S32: 259977 | T32: 1001047 | U32: 351008 | V32: -99048 | W32: 170214 | X32: 227524 | Y32: 649698 | Z32: =Z28 -> 209585 | AA32: =AA28 -> -205188 | AB32: 107332 | AC32: 162067 | AD32: 273796 | AE32: =AE28 -> 229181 | AF32: =AF28 -> -92564 | AG32: =AG28 -> 136617
B33: IR/CSSL | C33: Income tax and CSSL | D33: 104163 | E33: 94396 | F33: 59614 | G33: 12194 | H33: 34046 | I33: 46293 | J33: 152147 | K33: 163615 | L33: 76583 | M33: 33081 | N33: 50643 | O33: 323922 | P33: 312714 | Q33: 9600 | R33: 116690 | S33: 27169 | T33: 466173 | U33: 137195 | V33: -39809 | W33: 72654 | X33: 63999 | Y33: 88731 | Z33: =-Z27 -> 88767 | AA33: =-AA27 -> -18590 | AB33: 21591 | AC33: 1142 | AD33: 92910 | AE33: =-AE27 -> 72407 | AF33: =-AF27 -> -63845 | AG33: =-AG27 -> 8562
B34: Resultado financeiro líquido | C34: Net financial result | D34: 23677 | E34: 76606 | F34: 30118 | G34: -16557 | H34: -12679 | I34: 84629 | J34: 85511 | K34: -1906 | L34: 27313 | M34: 48420 | N34: 52160 | O34: 125986 | P34: 56101 | Q34: 72916 | R34: 82006 | S34: 85617 | T34: 296640 | U34: 130381 | V34: 154248 | W34: 176817 | X34: 236804 | Y34: 698250 | Z34: =-Z19 -> 261334 | AA34: =-AA19 -> 197789 | AB34: 229222 | AC34: 343376 | AD34: 1031721 | AE34: =-AE19 -> 257741 | AF34: =-AF19 -> 316574 | AG34: =-AG19 -> 574315
B35: Depreciação e amortização | C35: Depreciation and amortization | D35: 94304 | E35: 156617 | F35: 46314 | G35: 45811 | H35: 50563 | I35: 51515 | J35: 194203 | K35: 50667 | L35: 49164 | M35: 57364 | N35: 56057 | O35: 213252 | P35: 54266 | Q35: 53628 | R35: 55036 | S35: 64812 | T35: 227742 | U35: 69031 | V35: 84938 | W35: 96360 | X35: 70070 | Y35: 320399 | Z35: 110110 | AA35: 98469.4 | AB35: 114739 | AC35: 135961 | AD35: 459279.4 | AE35: 141985 | AF35: 141254 | AG35: =SUM(AE35:AF35) -> 283239
B36: EBITDA | C36: EBITDA | D36: 713761 | E36: 906860 | F36: 445121 | G36: 207872 | H36: 265075 | I36: 362763 | J36: 1280831 | K36: 533595 | L36: 265738 | M36: 385676 | N36: 478046 | O36: 1663054 | P36: 762672 | Q36: 279241 | R36: 512114 | S36: 437575 | T36: 1991602 | U36: 687615 | V36: 100329 | W36: 370737 | X36: 598397 | Y36: 1757078 | Z36: =SUM(Z32:Z35) -> 669796 | AA36: 72480.4 | AB36: 472884 | AC36: 642546 | AD36: 1857706.4 | AE36: =SUM(AE32:AE35) -> 701314 | AF36: =SUM(AF32:AF35) -> 301419 | AG36: =SUM(AG32:AG35) -> 1002733
B37: Despesas de P&D | C37: R&D expenses | D37: 197916 | E37: 270687 | J37: 248004 | K37: 57429 | L37: 66099.03127 | M37: 65891 | N37: 76941.96873 | O37: 266362 | P37: 61101 | Q37: 75189 | R37: 108921 | S37: 129558 | T37: 374769 | U37: 110599 | V37: 125772 | W37: 140083 | X37: 160126 | Y37: 536579 | Z37: 142151 | AA37: 179658 | AB37: 171933 | AC37: 173019 | AD37: 666761 | AE37: 168116 | AF37: 175170 | AG37: =SUM(AE37:AF37) -> 343286
B38: EBITDA Ajustado | C38: Adjusted EBITDA | D38: 911677 | E38: 1177547 | J38: 1528835 | K38: 591024 | L38: 331837.0313 | M38: 451567 | N38: 554987.9687 | O38: 1929416 | P38: 823773 | Q38: 354430 | R38: 621035 | S38: 567133 | T38: 2366371 | U38: 798214 | V38: 226101 | W38: 510820 | X38: 758523 | Y38: 2293657 | Z38: =Z36+Z37 -> 811947 | AA38: =AA36+AA37 -> 252138.4 | AB38: =AB36+AB37 -> 644817 | AC38: 815565 | AD38: 2524467.4 | AE38: =AE36+AE37 -> 869430 | AF38: =AF36+AF37 -> 476589 | AG38: =AG36+AG37 -> 1346019

Sheet 2. BP | BS
Y1: Voltar | Back
B2: BP Consolidado | Consolidated Balance Sheet
B5: Balanço Patrimonial | C5: Balance Sheet | D5: 2018-12-01 | E5: 2019-12-01 | F5: 2020-12-01 | G5: 2021-03-01 | H5: 2021-06-01 | I5: 2021-09-01 | J5: 2021-12-01 | K5: 2022-03-01 | L5: 2022-06-01 | M5: 2022-09-01 | N5: 2022-12-31 | O5: 2023-03-31 | P5: 2023-06-30 | Q5: 2023-09-30 | R5: 2023-12-31 | S5: 2024-03-31 | T5: 2024-06-30 | U5: 2024-09-30 | V5: 2024-12-31 | W5: 2025-03-31 | X5: 2025-06-01
B6: (R$'000) | C6: (R$'000) | D6: dec/18 | E6: dec/19 | F6: dec/20 | G6: 2021-03-01 | H6: 2021-06-01 | I6: sep/21 | J6: dec/21 | K6: 2022-03-01 | L6: 2022-06-01 | M6: sep/22 | N6: dec/22 | O6: 2023-03-01 | P6: 2023-06-01 | Q6: sep/23 | R6: dec/23 | S6: 2024-03-01 | T6: 2024-06-01 | U6: sep/24 | V6: dec/24 | W6: 2025-03-01 | X6: 2025-06-01
B7: Ativo | C7: Assets | D7: 3520739 | E7: 4734424 | F7: 6312105 | G7: 7285512 | H7: 7213799 | I7: 7569507 | J7: 7900277 | K7: 8500550 | L7: 8509983 | M7: 8991576 | N7: 10239872 | O7: 11454976 | P7: 13607887 | Q7: 14940391 | R7: 15313148 | S7: =S8+S19 -> 16149051 | T7: 16302498 | U7: 17029063 | V7: 18265951 | W7: 17749529 | X7: =X8+X19 -> 17647507
B8: Circulante | C8: Current | D8: 1557625 | E8: 2306628 | F8: 3798883 | G8: 3316966 | H8: 3344077 | I8: 3394043 | J8: 3453302 | K8: 4006130 | L8: 3725156 | M8: 3898858 | N8: 3777271 | O8: 4757327 | P8: 6251236 | Q8: 6090363 | R8: 6430618 | S8: =SUM(S9:S17) -> 6873509 | T8: 6503816 | U8: 6989492 | V8: 7169626 | W8: 6603171 | X8: =SUM(X9:X17) -> 6236659
B9: Caixa e equivalentes de caixa | C9: Cash and cash equivalents | D9: 188122 | E9: 399494 | F9: 1387214 | G9: 703611 | H9: 1109310 | I9: 1023719 | J9: 717372 | K9: 1412203 | L9: 1192178 | M9: 1128208 | N9: 542437 | O9: 1175297 | P9: 2842919 | Q9: 1607874 | R9: 1660644 | S9: 2064004 | T9: 1815612 | U9: 2152452 | V9: 2103232 | W9: 1560628 | X9: 1500001
B10: Contas a receber | C10: Accounts receivable | D10: 568321 | E10: 839767 | F10: 1136482 | G10: 1425832 | H10: 974894 | I10: 991345 | J10: 1324613 | K10: 1350706 | L10: 1139792 | M10: 1190547 | N10: 1448136 | O10: 1648187 | P10: 1304833 | Q10: 1764198 | R10: 2015909 | S10: 2267309 | T10: 1978821 | U10: 2115840 | V10: 2398251 | W10: 2583161 | X10: 2204976
B11: Estoques | C11: Inventories | D11: 686287 | E11: 886793 | F11: 1069035 | G11: 1050079 | H11: 1137053 | I11: 1248955 | J11: 1259321 | K11: 1119076 | L11: 1228281 | M11: 1385488 | N11: 1550580 | O11: 1707244 | P11: 1833094 | Q11: 2274010 | R11: 2320024 | S11: 2153773 | T11: 2230046 | U11: 2195533 | V11: 2290917 | W11: 2178164 | X11: 2202996
B12: Instrumentos financeiros derivativos | C12: Derivative financial instruments | D12: 0 | E12: 1682 | F12: 18338 | G12: 0 | H12: 0 | I12: 0 | J12: 0 | K12: 0 | L12: 0 | M12: 0 | N12: 0 | O12: 0 | P12: 0 | Q12: 0 | R12: 0 | S12: 0 | T12: 0 | U12: 0 | V12: 0 | W12: 0 | X12: 0
B13: Ativo fiscal corrente | C13: Current tax asset | D13: 63149 | E13: 76649 | F13: 133583 | G13: 77081 | H13: 71113 | I13: 76603 | J13: 89053 | K13: 70307 | L13: 75370 | M13: 101496 | N13: 112276 | O13: 105786 | P13: 118361 | Q13: 151795 | R13: 108880 | S13: 102238 | T13: 114133 | U13: 80619 | V13: 139406 | W13: 119946 | X13: 124723
B14: Impostos e contribuições a recuperar | C14: Taxes recoverable | D14: 17513 | E14: 62169 | F14: 28211 | G14: 10782 | H14: 8539 | I14: 9247 | J14: 13661 | K14: 12605 | L14: 29937 | M14: 17014 | N14: 36196 | O14: 46619 | P14: 67021 | Q14: 193133 | R14: 223782 | S14: 215528 | T14: 285146 | U14: 330456 | V14: 84054 | W14: 44957 | X14: 72652
B15: AFAC | C15: AFAC (Advance for Future Capital Increase) | D15: 9 | E15: 9 | F15: 9 | G15: 9 | H15: 9 | I15: 9 | J15: 9 | K15: 9 | L15: 29 | M15: 9 | N15: 9 | O15: 9 | P15: 9 | Q15: 9 | R15: 9 | S15: 0 | T15: 0 | U15: 0 | V15: 0 | W15: 0 | X15: 0
B16: Ativos mantidos para venda | C16: Assets held for sale | D16: 0 | E16: 0 | F16: 0 | G16: 0 | H16: 0 | I16: 0 | J16: 0 | K16: 0 | L16: 0 | M16: 0 | N16: 0 | O16: 0 | P16: 0 | Q16: 0 | R16: 0 | S16: 0 | T16: 0 | U16: 0 | V16: 11157 | W16: 10683 | X16: 10702
B17: Outras contas a receber | C17: Other receivable | D17: 34224 | E17: 40065 | F17: 26011 | G17: 49572 | H17: 43159 | I17: 44165 | J17: 49273 | K17: 41224 | L17: 59569 | M17: 76096 | N17: 87637 | O17: 74185 | P17: 84999 | Q17: 99344 | R17: 101370 | S17: 70657 | T17: 80058 | U17: 114592 | V17: 142609 | W17: 105632 | X17: 120609
B19: Não Circulante | C19: Non-current | D19: 1963114 | E19: 2427796 | F19: 2513222 | G19: 3968546 | H19: 3869722 | I19: 4175464 | J19: 4446975 | K19: 4494420 | L19: 4784827 | M19: 5092718 | N19: 6462601 | O19: 6697649 | P19: 7356651 | Q19: 8850028 | R19: 8882530 | S19: =SUM(S20:S34) -> 9275542 | T19: 9798682 | U19: 10039571 | V19: 11096325 | W19: 11146358 | X19: =SUM(X20:X34) -> 11410848
B20: Contas a receber de clientes | C20: Accounts receivable | D20: 0 | E20: 567 | F20: 2179 | G20: 985 | H20: 5863 | I20: 3090 | J20: 331 | K20: 257 | L20: 261 | M20: 302 | N20: 1381 | O20: 131 | P20: 34 | Q20: 59 | R20: 5428 | S20: 4956 | T20: 4795 | U20: 4411 | V20: 4027 | W20: 3717 | X20: 3347
B21: Instrumentos financeiros derivativos | C21: Derivative financial instruments | D21: 0 | E21: 0 | F21: 0 | G21: 0 | H21: 0 | I21: 0 | J21: 0 | K21: 0 | L21: 0 | M21: 0 | N21: 0 | O21: 0 | P21: 0 | Q21: 0 | R21: 0 | S21: 0 | T21: 137727 | U21: 127128 | V21: 212708 | W21: 169872 | X21: 104122
B22: AFAC | C22: AFAC (Advance for Future Capital Increase) | D22: 0 | E22: 0 | F22: 0 | G22: 0 | H22: 0 | I22: 0 | J22: 0 | K22: 0 | L22: 0 | M22: 0 | N22: 0 | O22: 0 | P22: 0 | Q22: 0 | R22: 0 | S22: 9 | T22: 9 | U22: 9 | V22: 9 | W22: 9 | X22: 9
B23: Títulos e valores mobiliários | C23: Marketable securities | D23: 0 | E23: 0 | F23: 10043 | G23: 9758 | H23: 11767 | I23: 9943 | J23: 15271 | K23: 23031 | L23: 22747 | M23: 22441 | N23: 29572 | O23: 34766 | P23: 38699 | Q23: 43916 | R23: 40124 | S23: 46593 | T23: 50566 | U23: 52444 | V23: 48743 | W23: 56797 | X23: 53144
B24: Ativo fiscal corrente | C24: Current tax asset | D24: 5820 | E24: 7361 | F24: 5556 | G24: 6558 | H24: 4396 | I24: 3645 | J24: 3339 | K24: 3727 | L24: 3784 | M24: 1707 | N24: 1482 | O24: 1505 | P24: 1487 | Q24: 2794 | R24: 3190 | S24: 2945 | T24: 3017 | U24: 2724 | V24: 2617 | W24: 3968 | X24: 3948
B25: Ativo fiscal diferido | C25: Deferred tax asset | D25: 29350 | E25: 76697 | F25: 202418 | G25: 253072 | H25: 206317 | I25: 239883 | J25: 239534 | K25: 152212 | L25: 157318 | M25: 177336 | N25: 145493 | O25: 193100 | P25: 277171 | Q25: 299832 | R25: 236132 | S25: 270706 | T25: 279180 | U25: 329959 | V25: 243731 | W25: 264934 | X25: 318776
B26: Impostos e contribuições a recuperar | C26: Taxes and contributions to be recovered | D26: 0 | E26: 0 | F26: 0 | G26: 0 | H26: 0 | I26: 0 | J26: 0 | K26: 0 | L26: 0 | M26: 0 | N26: 0 | O26: 0 | P26: 0 | Q26: 0 | R26: 0 | S26: 0 | T26: 0 | U26: 0 | V26: 426728 | W26: 434566 | X26: 446451
B27: Depósito judiciais | C27: Judicial deposits | D27: 24228 | E27: 28432 | F27: 27994 | G27: 28266 | H27: 28583 | I27: 30510 | J27: 31125 | K27: 32461 | L27: 34492 | M27: 37496 | N27: 38292 | O27: 36749 | P27: 38920 | Q27: 39307 | R27: 39146 | S27: 40999 | T27: 41977 | U27: 45412 | V27: 46098 | W27: 47856 | X27: 61338
B28: Depósito em garantia (escrow) | C28: Security deposits (escrow) | D28: 141 | E28: 0 | F28: 0 | G28: 0 | H28: 0 | I28: 0 | J28: 0 | K28: 0 | L28: 0 | M28: 0 | N28: 0 | O28: 0 | P28: - | Q28: 0 | R28: 0 | S28: 0 | T28: 0 | U28: 0 | V28: 0 | W28: 0 | X28: 0
B29: Outras contas a receber | C29: Other receivable | D29: 85 | E29: 729 | F29: 425 | G29: 348 | H29: 215 | I29: 136 | J29: 68 | K29: 8 | L29: 4 | M29: 65 | N29: 101 | O29: 98 | P29: 4185 | Q29: 4954 | R29: 473 | S29: 13386 | T29: 14223 | U29: 13519 | V29: 9204 | W29: 8606 | X29: 3915
B30: Investimentos | C30: Investments | D30: 34991 | E30: 1977 | F30: 609 | G30: 1542 | H30: 2952 | I30: 3652 | J30: 4697 | K30: 6146 | L30: 11645 | M30: 12698 | N30: 29784 | O30: 32555 | P30: 62556 | Q30: 88105 | R30: 94812 | S30: 92036 | T30: 115786 | U30: 113903 | V30: 139916 | W30: 126773 | X30: 136201
B31: Imobilizado | C31: Property, plant and equipment | D31: 1083679 | E31: 1253969 | F31: 945210 | G31: 1059230 | H31: 1127408 | I31: 1243544 | J31: 1473350 | K31: 1487847 | L31: 1597727 | M31: 1730708 | N31: 1912974 | O31: 2012369 | P31: 2208414 | Q31: 2403570 | R31: 2578425 | S31: 2746553 | T31: 2983218 | U31: 3171893 | V31: 3492083 | W31: 3622742 | X31: 3714879
B32: Arrendamentos por direito de uso | C32: Right of use of assets | D32: 0 | E32: 208758 | F32: 224458 | G32: 547826 | H32: 517928 | I32: 516496 | J32: 518150 | K32: 527702 | L32: 507982 | M32: 521876 | N32: 579477 | O32: 650679 | P32: 639082 | Q32: 636287 | R32: 653362 | S32: 711601 | T32: 697413 | U32: 703978 | V32: 716244 | W32: 680194 | X32: 825012
B33: Intangível | C33: Intangible assets | D33: 784820 | E33: 849306 | F33: 1094330 | G33: 2060961 | H33: 1964293 | I33: 2124565 | J33: 2161110 | K33: 2261029 | L33: 2448867 | M33: 2588089 | N33: 3724045 | O33: 3735697 | P33: 4086103 | Q33: 5331204 | R33: 5231438 | S33: 5345758 | T33: 5470771 | U33: 5474191 | V33: 5754217 | W33: 5726324 | X33: 5739706
B36: Passivo e Patrimônio Líquido | C36: Liabilities and Shareholders' equity | D36: 3520739 | E36: 4734424 | F36: 6312105 | G36: 7285512 | H36: 7213799 | I36: 7569507 | J36: 7900277 | K36: 8500550 | L36: 8509983 | M36: 8991576 | N36: 10239872 | O36: 11454976 | P36: 13607887 | Q36: 14940391 | R36: 15313148 | S36: =S37+S53+S66 -> 16149051 | T36: 16302498 | U36: 17029063 | V36: 18265951 | W36: 17749529 | X36: =X37+X53+X66 -> 17647507
B37: Circulante | C37: Current | D37: 1077672 | E37: 1039673 | F37: 1416769 | G37: 1876706 | H37: 1899637 | I37: 1969994 | J37: 2195108 | K37: 1793198 | L37: 1589755 | M37: 1784838 | N37: 2489047 | O37: 2766892 | P37: 2993219 | Q37: 3707530 | R37: 6390301 | S37: =SUM(S38:S52) -> 4518286 | T37: 3589669 | U37: 3329309 | V37: =SUM(V38:V52) -> 11215507 | W37: =SUM(W38:W52) -> 10711138 | X37: =SUM(X38:X52) -> 3250247
B38: Fornecedores | C38: Suppliers | D38: 204213 | E38: 289068 | F38: 311934 | G38: 383685 | H38: 412804 | I38: 418726 | J38: 577257 | K38: 377895 | L38: 606899 | M38: 697956 | N38: 765379 | O38: 833537 | P38: 739405 | Q38: 893920 | R38: 812810 | S38: 803599 | T38: 828297 | U38: 891388 | V38: 1047145 | W38: 957001 | X38: 896872
B39: Instrumentos financeiros derivativos | C39: Derivative financial instruments | D39: 0 | E39: 0 | F39: 0 | G39: 0 | H39: 0 | I39: 0 | K39: 6654 | L39: 0 | M39: 0 | N39: 0 | O39: 31807 | P39: 108420 | Q39: 105284 | R39: 95224 | S39: 97980 | T39: 78894 | U39: 76173 | V39: 78717 | W39: 90378 | X39: 95909
B40: Empréstimos e financiamentos | C40: Borrowings | D40: 60640 | E40: 58712 | F40: 132144 | G40: 400675 | H40: 584493 | I40: 591450 | J40: 609132 | K40: 264545 | L40: 103272 | M40: 91933 | N40: 355250 | O40: 501472 | P40: 608402 | Q40: 989753 | R40: 1582609 | S40: 1839566 | T40: 830240 | U40: 659317 | V40: 1804244 | W40: 1644476 | X40: 386718
B41: Debêntures | C41: Debentures | D41: 0 | E41: 0 | F41: 0 | G41: 4995 | H41: 361 | I41: 9711 | J41: 1922 | K41: 29118 | L41: 47427 | M41: 38341 | N41: 216915 | O41: 198349 | P41: 252473 | Q41: 223812 | R41: 2407908 | S41: 216336 | T41: 258990 | U41: 57226 | V41: 6418614 | W41: 6354216 | X41: 190844
B42: Arrendamentos a pagar | C42: Leasing | D42: 17593 | E42: 23322 | F42: 22774 | G42: 22640 | H42: 20993 | I42: 18707 | J42: 16263 | K42: 17318 | L42: 14918 | M42: 12832 | N42: 11461 | O42: 5202 | P42: 3827 | Q42: 2495 | R42: 1247 | S42: 226 | T42: 0 | U42: 0 | V42: 0 | W42: 0 | X42: 0
B43: Passivo de arrendamento por direito de uso | C43: Right of use of assets | D43: 0 | E43: 57038 | F43: 64926 | G43: 78745 | H43: 85272 | I43: 86566 | J43: 89206 | K43: 87335 | L43: 84830 | M43: 93058 | N43: 126060 | O43: 137648 | P43: 137150 | Q43: 142115 | R43: 142810 | S43: 159688 | T43: 155959 | U43: 168443 | V43: 193218 | W43: 182737 | X43: 192937
B44: Salários, provisões e contribuições sociais | C44: Payroll and related charges | D44: 137392 | E44: 170230 | F44: 198788 | G44: 221353 | H44: 252501 | I44: 307952 | J44: 244944 | K44: 268339 | L44: 340502 | M44: 383201 | N44: 323735 | O44: 329303 | P44: 423235 | Q44: 477975 | R44: 395805 | S44: 383535 | T44: 483561 | U44: 528893 | V44: 416708 | W44: 407564 | X44: 513922
B45: Imposto de renda e contribuição social a recolher | C45: Income tax and social contribution payable | D45: 8351 | E45: 37014 | F45: 56087 | G45: 164612 | H45: 122895 | I45: 131774 | J45: 125823 | K45: 170483 | L45: 115238 | M45: 143086 | N45: 67750 | O45: 143793 | P45: 65019 | Q45: 54541 | R45: 37116 | S45: 73503 | T45: 28014 | U45: 57854 | V45: 90598 | W45: 107884 | X45: 13870
B46: Passivo fiscal corrente | C46: Taxes payable | D46: 20980 | E46: 11838 | F46: 27229 | G46: 40043 | H46: 30482 | I46: 30640 | J46: 35625 | K46: 35023 | L46: 33311 | M46: 30203 | N46: 21148 | O46: 36623 | P46: 34464 | Q46: 46473 | R46: 39464 | S46: 63555 | T46: 44670 | U46: 52460 | V46: 60250 | W46: 85253 | X46: 72765
B47: Parcelamento especial | C47: Special tax installment | D47: 1587 | E47: 254 | F47: 282 | G47: 283 | H47: 285 | I47: 288 | J47: 144 | K47: 144 | L47: 144 | M47: 144 | N47: 0 | O47: 0 | P47: 0 | Q47: 0 | R47: 0 | S47: 0 | T47: 0 | U47: 0 | V47: 0 | W47: 0 | X47: 0
B48: Participação dos colaboradores no resultado | C48: Profit sharing (employees) | D48: 122057 | E48: 116719 | F48: 161474 | G48: 113921 | H48: 158961 | I48: 145198 | J48: 200480 | K48: 136413 | L48: 108047 | M48: 158352 | N48: 222253 | O48: 167930 | P48: 234945 | Q48: 209924 | R48: 185737 | S48: 167455 | T48: 164173 | U48: 231380 | V48: 272343 | W48: 215242 | X48: 288668
B49: Dividendos a pagar | C49: Dividends | D49: 79142 | E49: 88255 | F49: 226741 | G49: 203787 | H49: 5615 | I49: 19743 | J49: 193370 | K49: 174330 | L49: 43308 | M49: 28445 | N49: 259304 | O49: 244866 | P49: 229917 | Q49: 354209 | R49: 425365 | S49: 407919 | T49: 423248 | U49: 332585 | V49: 487490 | W49: 383061 | X49: 273029
B50: Antecipação de dividendos de controladas | C50: Anticipation of dividends from subsidiaries | D50: 22851 | E50: 0 | F50: 0 | G50: 0 | H50: 0 | I50: 0 | J50: 201 | K50: 201 | L50: 0 | M50: 201 | N50: 201 | O50: 201 | P50: 201 | Q50: 201 | R50: 201 | S50: 0 | T50: 0 | U50: 0 | V50: 0 | W50: 0 | X50: 0
B51: Outras contas a pagar | C51: Other payables | D51: 402866 | E51: 187223 | F51: 214390 | G51: 241967 | H51: 224975 | I51: 209239 | J51: 100741 | K51: 225400 | L51: 91859 | M51: 107086 | N51: 119591 | O51: 136161 | P51: 155761 | Q51: 206828 | R51: 264005 | S51: 304924 | T51: 293623 | U51: 273590 | V51: 346180 | W51: 283326 | X51: 324713
B53: Não Circulante | C53: Non-current | D53: 255016 | E53: 1218321 | F53: 2130128 | G53: 2185534 | H53: 2260671 | I53: 2343218 | J53: 2319675 | K53: 3329181 | L53: 3327352 | M53: 3347538 | N53: 3823302 | O53: 4439540 | P53: 6516389 | Q53: 7180879 | R53: 4816148 | S53: =SUM(S54:S65) -> 7183458 | T53: 8245877 | U53: 9155502 | V53: 2205363 | W53: 2148500 | X53: =SUM(X54:X65) -> 9791970
B54: Instrumentos financeiros derivativos | C54: Derivative financial instruments | P54: 64692 | Q54: 25387 | R54: 43922 | S54: 11317 | T54: 0 | U54: 0 | V54: 0 | W54: 0 | X54: 0
B55: Empréstimos e financiamentos | C55: Loans and financing | D55: 136209 | E55: 905082 | F55: 1340500 | G55: 1064283 | H55: 1169977 | I55: 1263978 | J55: 1256000 | K55: 1259098 | L55: 1254354 | M55: 1266143 | N55: 1807983 | O55: 2371941 | P55: 2906773 | Q55: 3611291 | R55: 2355106 | S55: 2052962 | T55: 3110837 | U55: 2744178 | V55: 1386780 | W55: 1349293 | X55: 2493388
B56: Debêntures | C56: Debentures | D56: 0 | E56: 0 | F56: 478798 | G56: 479823 | H56: 480169 | I56: 480517 | J56: 480865 | K56: 1477788 | L56: 1478309 | M56: 1478834 | N56: 1317693 | O56: 1318214 | P56: 2808574 | Q56: 2809630 | R56: 1692561 | S56: 4329236 | T56: 4329357 | U56: 5615995 | V56: 0 | W56: 0 | X56: 6267991
B57: Arrendamentos a pagar | C57: Leasing | D57: 12628 | E57: 24734 | F57: 20730 | G57: 20959 | H57: 19634 | I57: 15880 | J57: 12418 | K57: 5751 | L57: 4057 | M57: 2632 | N57: 1281 | O57: 225 | P57: 0 | Q57: 0 | R57: 0 | S57: 0 | T57: 0 | U57: 0 | V57: 0 | W57: 0 | X57: 0
B58: Passivo de arrendamento por direito de uso | C58: Right of use of assets | D58: 0 | E58: 157606 | F58: 169739 | G58: 485426 | H58: 450932 | I58: 450606 | J58: 452090 | K58: 465113 | L58: 449478 | M58: 457459 | N58: 486419 | O58: 550749 | P58: 542544 | Q58: 538515 | R58: 537881 | S58: 584204 | T58: 570749 | U58: 567048 | V58: 558959 | W58: 536457 | X58: 675203
B59: Passivo fiscal diferido | C59: Taxes payable | D59: 38000 | E59: 29167 | F59: 5003 | G59: 14443 | H59: 12234 | I59: 12478 | J59: 11258 | K59: 9274 | L59: 9122 | M59: 13871 | N59: 13253 | O59: 11338 | P59: 10000 | Q59: 10025 | R59: 7579 | S59: 10344 | T59: 14804 | U59: 11958 | V59: 10062 | W59: 10611 | X59: 9620
B60: Passivo fiscal corrente | C60: Special tax installment | D60: 0 | E60: 1502 | F60: 1388 | G60: 1321 | H60: 1259 | I60: 1198 | J60: 589 | K60: 589 | L60: 589 | M60: 589 | N60: 589 | O60: 0 | P60: 0 | R60: 0 | S60: 0 | T60: 0 | U60: 0 | V60: 0 | W60: 0 | X60: 0
B61: Provisão para contingências | C61: Provision for contingencies | D61: 44064 | E61: 96784 | F61: 112924 | G61: 118156 | H61: 125203 | I61: 116724 | J61: 106132 | K61: 110989 | L61: 110703 | M61: 108445 | N61: 109586 | O61: 103662 | P61: 104952 | Q61: 106032 | R61: 103087 | S61: 118204 | T61: 137150 | U61: 136064 | V61: 151940 | W61: 154922 | X61: 145510
B62: Contas a pagar investimentos | C62: Investments payable | D62: 46 | E62: 46 | F62: 46 | G62: 46 | H62: 51 | I62: 56 | J62: 49 | K62: 49 | L62: 66 | M62: 60 | N62: 0 | O62: 0 | P62: 0 | R62: 0 | S62: 0 | T62: 0 | U62: 0 | V62: 0 | W62: 0 | X62: 0
B63: Outras contas a pagar | C63: Other payables | D63: 6254 | E63: 3400 | F63: 1000 | G63: 400 | H63: 0 | I63: 0 | J63: 274 | K63: 254 | L63: 19835 | M63: 18198 | N63: 86498 | O63: 83411 | P63: 78854 | Q63: 79453 | R63: 76012 | S63: 77191 | T63: 82980 | U63: 80259 | V63: 97622 | W63: 97217 | X63: 200258
B64: Provisão para passivo a descoberto | C64: Provision for unsecured liabilities | D64: 17815 | E64: 0 | F64: 0 | G64: 677 | H64: 1212 | I64: 1781 | J64: 0 | K64: 276 | L64: 839 | M64: 1307 | N64: 0 | O64: 0 | P64: 0 | Q64: 546 | R64: 0 | S64: 0 | T64: 0 | U64: 0 | V64: 0 | W64: 0 | X64: 0
B66: Patrimônio Líquido | C66: Shareholders' equity | D66: 2188051 | E66: 2476430 | F66: 2765208 | G66: 3223272 | H66: 3053491 | I66: 3256295 | J66: 3385494 | K66: 3378171 | L66: 3592876 | M66: 3859200 | N66: 3927523 | O66: 4248544 | P66: 4098279 | Q66: 4051982 | R66: 4106699 | S66: =SUM(S67:S73) -> 4447307 | T66: 4466952 | U66: 4544252 | V66: 4845081 | W66: 4889891 | X66: =SUM(X67:X73) -> 4605290
B67: Capital social | C67: Equity | D67: 1323570 | E67: 1332908 | F67: 855864 | G67: 857864 | H67: 858715 | I67: 858715 | J67: 895025 | K67: 895025 | L67: 1035025 | M67: 1075025 | N67: 1203878 | O67: 1203878 | P67: 1203878 | Q67: 1203878 | R67: 1203878 | S67: 1203878 | T67: 1203878 | U67: 1203878 | V67: 1205522 | W67: 1205522 | X67: 1205522
B68: Reserva de lucros | C68: Profit reserve | D68: 874431 | E68: 1115752 | F68: 1644878 | G68: 1949174 | H68: 2060087 | I68: 2097969 | J68: 2083143 | K68: 2393834 | L68: 2326055 | M68: 2527400 | N68: 2527689 | O68: 2851491 | P68: 2774421 | Q68: 2678665 | R68: 2820623 | S68: 2759741 | T68: 2759741 | U68: 2759741 | V68: 2771817 | W68: 2771817 | X68: 2771817
B69: Lucros acumulados | C69: Retained earnings | D69: - | E69: - | F69: - | G69: - | H69: - | I69: - | J69: - | K69: - | L69: - | M69: - | N69: - | O69: - | P69: - | Q69: - | R69: - | S69: 209239 | T69: 5047 | U69: 140069 | V69: 0 | W69: 223783 | X69: 129895
B70: Ajustes acumulados de conversão | C70: Currency translation adjustments | D70: 35881 | E70: 30351 | F70: 212868 | G70: 351133 | H70: 96580 | I70: 254254 | J70: 0 | K70: 0 | L70: 0 | M70: 0 | N70: - | O70: - | P70: 0 | R70: - | S70: 0 | T70: 0 | U70: 0 | V70: 0 | W70: 0 | X70: 0
B71: Ajustes de avaliação patrimonial | C71: Equity valuation adjustments | D71: -37414 | E71: -37879 | F71: 0 | G71: 0 | H71: 0 | I71: 0 | J71: 348666 | K71: 24685 | L71: 191718 | M71: 189961 | N71: 148935 | O71: 135031 | P71: 79153 | Q71: 116531 | R71: 17620 | S71: 196066 | T71: 473339 | U71: 413350 | V71: 824073 | W71: 629642 | X71: 415407
B72: Reserva de capital | C72: Capital reserve | D72: -8598 | E72: -8598 | F72: -8598 | G72: -8598 | H72: -8598 | I72: -8598 | J72: -8598 | K72: -8598 | L72: -8598 | M72: -8598 | N72: -8598 | O72: -8598 | P72: -8598 | Q72: -8598 | R72: -8598 | S72: -8598 | T72: -8598 | U72: -8598 | V72: -8598 | W72: -8356 | X72: -8356
B73: Participação de não controladores | C73: Non-controlling interest | D73: 181 | E73: 43896 | F73: 60196 | G73: 73699 | H73: 46707 | I73: 53955 | J73: 67258 | K73: 73225 | L73: 48676 | M73: 75412 | N73: 55619 | O73: 66742 | P73: 49425 | Q73: 61506 | R73: 73176 | S73: 86981 | T73: 33545 | U73: 35812 | V73: 52267 | W73: 67483 | X73: 91005

Sheet 3. Fluxo de Caixa | Cash Flow
AD1: Voltar | Back
B2: Fluxo de Caixa Consolidado | Consolidated Cash Flow
B5: Fluxo de Caixa (R$'000) | C5: Cash Flow | D5: 2018 | E5: 2019 | F5: 2020 | G5: 1T21 | H5: 2T21 | I5: 3T21 | J5: 4T21 | K5: 2021 | L5: 1T22 | M5: 2T22 | N5: 3T22 | O5: 4T22 | P5: 2022 | Q5: 1T23 | R5: 2T23 | S5: 3T23 | T5: 4T23 | U5: 2023 | V5: 1T24 | W5: 2T24 | X5: 3T24 | Y5: 4T24 | Z5: 2024 | AA5: 1T25 | AB5: 2T25 | AC5: 1H25
B6: (R$'000) | C6: (R$'000) | G6: =SUBSTITUTE(G5,"T","Q") -> 1Q21 | H6: =SUBSTITUTE(H5,"T","Q") -> 2Q21 | I6: =SUBSTITUTE(I5,"T","Q") -> 3Q21 | J6: =SUBSTITUTE(J5,"T","Q") -> 4Q21 | L6: =SUBSTITUTE(L5,"T","Q") -> 1Q22 | M6: =SUBSTITUTE(M5,"T","Q") -> 2Q22 | N6: =SUBSTITUTE(N5,"T","Q") -> 3Q22 | O6: =SUBSTITUTE(O5,"T","Q") -> 4Q22 | Q6: =SUBSTITUTE(Q5,"T","Q") -> 1Q23 | R6: =SUBSTITUTE(R5,"T","Q") -> 2Q23 | S6: =SUBSTITUTE(S5,"T","Q") -> 3Q23 | T6: =SUBSTITUTE(T5,"T","Q") -> 4Q23 | V6: =SUBSTITUTE(V5,"T","Q") -> 1Q24 | W6: =SUBSTITUTE(W5,"T","Q") -> 2Q24 | X6: =SUBSTITUTE(X5,"T","Q") -> 3Q24 | Y6: =SUBSTITUTE(Y5,"T","Q") -> 4Q24 | AA6: =SUBSTITUTE(AA5,"T","Q") -> 1Q25 | AB6: =SUBSTITUTE(AB5,"T","Q") -> 2Q25
B7: Saldo no início do exercício | C7: Cash and cash equivalents at the beginning of the period | D7: 236153 | E7: 188122 | F7: 399494 | G7: 1387214 | H7: 703611 | I7: 1109310 | J7: 1023719 | K7: 1387214 | L7: 717372 | M7: 1412203 | N7: 1192178 | O7: 1128208 | P7: 717372 | Q7: 542437 | R7: 1175297 | S7: 2842919 | T7: 1607874 | U7: 542437 | V7: 1660644 | W7: 2064004 | X7: 1815612 | Y7: 2152452.37 | Z7: =U33 -> 1660644 | AA7: 2103232 | AB7: =AA33 -> 1560628 | AC7: =Z33 -> 2103232
B8: Fluxo de Caixa das Atividades Operacionais | C8: Cash flow generated from operating activities | D8: 379331 | E8: 485423 | F8: 750500 | G8: 383861 | H8: 596570 | I8: 246832 | J8: 129555 | K8: 1356818 | L8: 697135 | M8: 468688 | N8: 396851 | O8: 7416 | P8: 1570090 | Q8: 317283 | R8: 319051 | S8: 69051 | T8: 130516 | U8: 835901 | V8: 529513 | W8: 388246 | X8: 525681.3703 | Y8: 153930.6297 | Z8: =SUM(Z9:Z11) -> 1597371 | AA8: 510511 | AB8: =SUM(AB9:AB11) -> 731438.2047 | AC8: =SUM(AC9:AC11) -> 1241942.205
B9: Resultado Ajustado | C9: Adjusted result | D9: 720225 | E9: 1019466 | F9: 1375181 | G9: 537200 | H9: 278032 | I9: 422429 | J9: 525500 | K9: 1763161 | L9: 828333 | M9: 358423 | N9: 547945 | O9: 486872 | P9: 2221573 | Q9: 727218 | R9: 190791 | S9: 431847 | T9: 624910 | U9: 1974766 | V9: 712238 | W9: 175507 | X9: 518416.3703 | Y9: 763316.6297 | Z9: =SUM(V9:Y9) -> 2169478 | AA9: 740663 | AB9: 352212.2047 | AC9: =SUM(AA9:AB9) -> 1092875.205
B10: Variação no Circulante Líquido | C10: Changes in operating assets and liabilities | D10: -201322 | E10: -369440 | F10: -376304 | G10: -91919 | H10: 382179 | I10: -120735 | J10: -353360 | K10: -183835 | L10: -76706 | M10: 271472 | N10: -61482 | O10: -372892 | P10: -239608 | Q10: -303887 | R10: 214050 | S10: -296729 | T10: -456510 | U10: -843076 | V10: -106469 | W10: 283713 | X10: 49400 | Y10: -538022 | Z10: =SUM(V10:Y10) -> -311378 | AA10: -202566 | AB10: 456950 | AC10: 254384
B11: Imposto de renda e contribuição pagos | C11: Income tax and social contribution paid | D11: -139572 | E11: -164603 | F11: -248377 | G11: -61420 | H11: -63641 | I11: -54862 | J11: -42585 | K11: -222508 | L11: -54492 | M11: -161207 | N11: -89612 | O11: -106564 | P11: -411875 | Q11: -106048 | R11: -85790 | S11: -66067 | T11: -37884 | U11: -295789 | V11: -76256 | W11: -70974 | X11: -42135 | Y11: -71364 | Z11: -260729 | AA11: -27593 | AB11: -77724 | AC11: -105317
B13: Fluxo de caixa utilizado nas atividades de investimentos | C13: Cah flow (used) generated in investing activities | D13: -279472 | E13: -604498 | F13: -469492 | G13: -1037371 | H13: -146879 | I13: -185786 | J13: -279677 | K13: -1649713 | L13: -452350 | M13: -204082 | N13: -258104 | O13: -1241482 | P13: -2156018 | Q13: -182406 | R13: -647606 | S13: -1568734 | T13: -219827 | U13: -2618573 | V13: -217181 | W13: -263086 | X13: -345658 | Y13: -370168 | Z13: =SUM(Z14:Z20) -> -1196093 | AA13: -347956 | AB13: =SUM(AB14:AB20) -> -361318.1395 | AC13: =SUM(AC14:AC20) -> -709274.1395
B14: Aquisição de controladas | C14: Acquisition of subsidiaries | D14: -4600 | E14: -18394 | F14: -1437 | G14: -932 | H14: -1589 | I14: -509 | J14: -3090 | K14: -6120 | L14: -2314 | M14: -6221 | N14: -379 | O14: -20677 | P14: -29591 | Q14: -8555 | R14: -28391 | S14: -42926 | T14: -8412 | U14: -88284 | W14: -21248 | X14: -5448 | Y14: 26681 | Z14: =SUM(V14:Y14) -> -15 | AA14: -62216 | AB14: -11396 | AC14: -73612
B15: Aporte de capital em investidas | C15: Capital increases in subsidiaries/associates | W15: 0 | X15: 0 | Y15: -39081 | Z15: -39081 | AA15: -5478 | AB15: -3425 | AC15: -8903
B16: Combinação de negócios, líquido de caixa | C16: Business combination, net of cash | D16: 0 | E16: -99959 | F16: -36012 | G16: 0 | H16: 0 | I16: 0 | J16: 0 | K16: 0 | L16: 0 | M16: 0 | N16: 0 | O16: -964669 | P16: -964669 | Q16: 0 | R16: -4837 | S16: -1331146 | T16: -9 | U16: -1335992 | V16: -4571 | W16: 4571 | X16: 0 | Y16: 0 | Z16: 0 | AA16: 0 | AB16: -89788 | AC16: -89788
B17: Aquisição de imobilizado e intangível | C17: Acquisition of property, plant and equipment and intangible assets | D17: -303788 | E17: -486145 | F17: -432043 | G17: -1036439 | H17: -145290 | I17: -185277 | J17: -276587 | K17: -1643593 | L17: -450036 | M17: -197861 | N17: -257725 | O17: -256136 | P17: -1161758 | Q17: -173851 | R17: -614378 | S17: -184825 | T17: -209178 | U17: -1182232 | V17: -212610 | W17: -244330 | X17: -340180 | Y17: -355510 | Z17: -1152630 | AA17: -278979 | AB17: -256162.1395 | AC17: -535141.1395
B18: Aquisição de títulos e valores mobiliários | C18: Acquisition of titles and marketable securities | D18: 0 | E18: 0 | F18: 0 | G18: 0 | H18: 0 | I18: 0 | J18: 0 | K18: 0 | L18: 0 | M18: 0 | N18: 0 | O18: 0 | P18: 0 | Q18: 0 | R18: 0 | S18: -9837 | T18: 9837 | U18: 0 | W18: -2079 | X18: -3681 | Y18: -2258 | Z18: -8018 | AA18: -3492 | AB18: -547 | AC18: -4039
B19: Outros valores recebidos de investidas | C19: Other amounts received from investments | D19: 28916 | E19: 0 | F19: 0 | G19: 0 | H19: 0 | I19: 0 | J19: 0 | K19: 0 | L19: 0 | M19: 0 | N19: 0 | O19: 0 | P19: 0 | Q19: 0 | R19: 0 | S19: 0 | T19: -12074 | U19: -12074 | W19: 0 | X19: 3651 | Y19: 0 | Z19: 3651 | AA19: 0 | AB19: 0 | AC19: 0
B20: Efeito caixa na incorporação / aquisição | C20: Proceeds from the dissolution of investment in subsidiary | D20: 0 | E20: 0 | F20: 0 | G20: 0 | H20: 0 | I20: 0 | J20: 0 | K20: 0 | L20: 0 | M20: 0 | N20: 0 | O20: 0 | P20: 0 | Q20: 0 | R20: 0 | S20: 0 | T20: 9 | U20: 9 | W20: 0 | X20: 0 | Y20: 0 | Z20: 0 | AA20: 2209 | AB20: 0 | AC20: 2209
B22: Fluxo de caixa proveniente das atividades de financiamentos | C22: Cash flow (used) generated in financing activities | D22: -147830 | E22: 338635 | F22: 672984 | G22: -76200 | H22: 32751 | I22: -155337 | J22: -206751 | K22: -405537 | L22: 554514 | M22: -472826 | N22: -167589 | O22: 644011 | P22: 558110 | Q22: 504347 | R22: 2008720 | S22: 252712 | T22: 205640 | U22: 2971419 | V22: 38633 | W22: -405489 | X22: 189346 | Y22: -19265 | Z22: =SUM(Z23:Z27) -> -196775 | AA22: -636339 | AB22: =SUM(AB23:AB27) -> -421937 | AC22: =SUM(AC23:AC27) -> -1058269
B23: Empréstimos e Financiamentos Líquidos | C23: Net borrowings | D23: -4146 | E23: 621392 | F23: 785519 | G23: -57032 | H23: 228678 | I23: 29011 | J23: -94410 | K23: 106247 | L23: 572774 | M23: -281587 | N23: -146498 | O23: 657930 | P23: 802619 | Q23: 517393 | R23: 2022025 | S23: 394879 | T23: 220578 | U23: 3154875 | V23: 54920 | W23: -333894 | X23: 301792 | Y23: 10557 | Z23: =SUM(V23:Y23) -> 33375 | AA23: -516333 | AB23: -320982 | AC23: -837315
B24: Aumento de capital social | C24: Equity increase | G24: 0 | H24: 0 | I24: 0 | J24: 0 | L24: 0 | M24: 0 | N24: 0 | O24: 0 | Q24: 0 | R24: 0 | S24: 0 | T24: 0 | V24: 0 | W24: 0 | X24: 0 | Y24: 1644 | Z24: 1644 | AA24: 0 | AB24: 0 | AC24: 0
B25: Dividendos e Juros Sobre Capital Próprio | C25: Dividends and interest on equity | D25: -143684 | E25: -282757 | F25: -112535 | G25: -21168 | H25: -196778 | I25: -184348 | J25: -112341 | K25: -514635 | L25: -18260 | M25: -191239 | N25: -21091 | O25: -13919 | P25: -244509 | Q25: -13046 | R25: -13305 | S25: -142167 | T25: -14938 | U25: -183456 | V25: -16287 | W25: -15974 | X25: -90199 | Y25: -90173 | Z25: -212633 | AA25: -93355 | AB25: -94286 | AC25: -187641
B26: Pagamento de instrumentos financeiros | C26: Payment of financial instruments | G26: 0 | H26: 0 | I26: 0 | J26: 0 | L26: 0 | M26: 0 | N26: 0 | O26: 0 | Q26: 0 | R26: 0 | S26: 0 | T26: 0 | W26: -55621 | X26: -22247 | Y26: 58707 | Z26: -19161 | AA26: -26644 | AB26: -6669 | AC26: -33313
B27: Capital integralizado | C27: Capital contribution | D27: 0 | E27: 0 | F27: 0 | G27: 2000 | H27: 851 | I27: 0 | J27: 0 | K27: 2851 | L27: 0 | M27: 0 | N27: 0 | O27: 0 | P27: 0 | Q27: 0 | R27: 0 | S27: 0 | T27: 0 | U27: 0 | V27: 0 | W27: 0 | X27: 0 | Y27: 0 | Z27: 0 | AA27: 0 | AB27: 0 | AC27: 0
B29: Aumento líquido em caixa e equivalentes de caixa | C29: Increase (decrease) in cash and cash equivalents | D29: -48031 | E29: 211372 | F29: 987720 | G29: -683603 | H29: 405699 | I29: -85591 | J29: -306347 | K29: -669842 | L29: 694831 | M29: -220025 | N29: -63970 | O29: -585771 | P29: -174935 | Q29: 632860 | R29: 1680165 | S29: -1246971 | T29: 116329 | U29: =U8+U13+U22 -> 1188747 | V29: 350965 | W29: -280329 | X29: 369369.3703 | Y29: -235502.3703 | Z29: =Z8+Z13+Z22 -> 204503 | AA29: -473784 | AB29: =AB8+AB13+AB22 -> -51816.93482 | AC29: =AC8+AC13+AC22 -> -525600.9348
B31: Variação cambial sobre o caixa e equivalentes de caixa das controladas do exterior | C31: Exchange variation on cash of foreign subsidiaries | D31: -60 | E31: -8188 | F31: 33728 | G31: 46107 | H31: -76743 | I31: 8700 | J31: 50526 | K31: 28590 | L31: -104468 | M31: -11805 | N31: -35128 | O31: 4284 | P31: -147117 | Q31: -6364 | R31: -12543 | S31: 11926 | T31: -63559 | U31: -70540 | V31: 52395 | W31: 31937 | X31: -32529 | Y31: 186282 | Z31: =SUM(V31:Y31) -> 238085 | AA31: -68820 | AB31: -8810 | AC31: -77630
B33: Saldo no final do exercício | C33: Cash and cash equivalents at the end of the period | D33: 188122 | E33: 399494 | F33: 1387214 | G33: 703611 | H33: 1109310 | I33: 1023719 | J33: 717372 | K33: 717372 | L33: 1412203 | M33: 1192178 | N33: 1128208 | O33: 542437 | P33: 542437 | Q33: 1175297 | R33: 2842919 | S33: 1607874 | T33: 1660644 | U33: 1660644 | V33: 2064004 | W33: 1815612 | X33: 2152452.37 | Y33: 2103232 | Z33: =Z7+Z29+Z31 -> 2103232 | AA33: 1560628 | AB33: =AB7+AB29+AB31 -> 1500001.065 | AC33: =AC7+AC29+AC31 -> 1500001.065
B35: Variação do caixa e equivalentes de caixa | C35: Increase (decrease) in cash and cash equivalents | D35: -48031 | E35: 211372 | F35: 987720 | G35: -683603 | H35: 405699 | I35: -85591 | J35: -306347 | K35: -669842 | L35: 694831 | M35: -220025 | N35: -63970 | O35: -585771 | P35: -174935 | Q35: 632860 | R35: 1667622 | S35: -1235045 | T35: 52770 | U35: 1118207 | V35: 403360 | W35: -248392 | X35: 336840.3703 | Y35: -49220.37029 | Z35: =Z29+Z31 -> 442588 | AA35: -542604 | AB35: =AB29+AB31 -> -60626.93482 | AC35: =AC29+AC31 -> -603230.9348

Sheet 4. Receita | Revenue
AG1: Voltar | Back
B2: Receita Líquida | Net Revenue
B5: Receita Líquida - Unidade de Negócio | C5: Net Revenue (Business Unit) | D5: 2019 | E5: 1T20 | F5: 2T20 | G5: 3T20 | H5: 4T20 | I5: 2020 | J5: 1T21 | K5: 2T21 | L5: 3T21 | M5: 4T21 | N5: 2021 | O5: 1T22 | P5: 2T22 | Q5: 3T22 | R5: 4T22 | S5: 2022 | T5: 1T23 | U5: 2T23 | V5: 3T23 | W5: 4T23 | X5: 2023 | Y5: 1T24 | Z5: 2T24 | AA5: 3T24 | AB5: 4T24 | AC5: 2024 | AD5: 1T25 | AE5: 2T25 | AF5: 1H25
B6: (R$'000) | C6: (R$'000) | E6: 1Q20 | F6: 2Q20 | G6: 3Q20 | H6: 4Q20 | J6: 1Q21 | K6: 2Q21 | L6: 3Q21 | M6: 4Q21 | O6: 1Q22 | P6: 2Q22 | Q6: 3Q22 | R6: 4Q22 | T6: 1Q23 | U6: 2Q23 | V6: 3Q23 | W6: 4Q23 | Y6: 1Q24 | Z6: 2Q24 | AA6: 3Q24 | AB6: 4Q24 | AD6: 1Q25 | AE6: 2Q25
B7: Prescrição | C7: Prescription | D7: 3080101 | E7: 1047867 | F7: 675816 | G7: 803692 | H7: 1010762 | I7: 3538137 | J7: 1243672 | K7: 787625 | L7: 1034673 | M7: 1308222 | N7: 4374192 | O7: 1464130 | P7: 977149 | Q7: 1306465 | R7: 1459868 | S7: 5207612 | T7: 1616033 | U7: 1139136 | V7: 1427201 | W7: 1463626 | X7: 5645996 | Y7: 1780790 | Z7: 1261057 | AA7: 1688433 | AB7: 1763112 | AC7: =SUM(Y7:AB7) -> 6493392 | AD7: 1872678 | AE7: 1551622 | AF7: =SUM(AD7:AE7) -> 3424300
B8: OTC | C8: OTC | D8: 0 | E8: 0 | F8: 0 | G8: 0 | H8: 74170 | I8: 74170 | J8: 20226 | K8: 24226 | L8: 22639 | M8: 36578 | N8: 103669 | O8: 37788 | P8: 53470 | Q8: 66278 | R8: 53756 | S8: 211292 | T8: 83783 | U8: 110509 | V8: 90761 | W8: 98847 | X8: 383900 | Y8: 107053 | Z8: 104872 | AA8: 131042 | AB8: 131271 | AC8: =SUM(Y8:AB8) -> 474238 | AD8: 113131 | AE8: 125847 | AF8: 238978
B9: Genéricos | C9: Generic | D9: 794051 | E9: 237160 | F9: 212904 | G9: 222527 | H9: 250337 | I9: 922928 | J9: 276330 | K9: 209662 | L9: 228628 | M9: 317739 | N9: 1032359 | O9: 328109 | P9: 305356 | Q9: 323201 | R9: 298666 | S9: 1255332 | T9: 399450 | U9: 305585 | V9: 371395 | W9: 645267 | X9: 1721697 | Y9: 599515 | Z9: 614201 | AA9: 632690 | AB9: 694730 | AC9: 2541136 | AD9: 728892 | AE9: 658959 | AF9: 1387851
B10: Institucional | C10: Institutional | D10: 702725 | E10: 178666 | F10: 241846 | G10: 248005 | H10: 244504 | I10: 913021 | J10: 299157 | K10: 439138 | L10: 317727 | M10: 260038 | N10: 1316060 | O10: 289745 | P10: 290351 | Q10: 276217 | R10: 268821 | S10: 1125134 | T10: 256084 | U10: 263612 | V10: 270402 | W10: 269713 | X10: 1059811 | Y10: 270756 | Z10: 269477 | AA10: 260740 | AB10: 253747 | AC10: 1054720 | AD10: 261756 | AE10: 274956 | AF10: 536712
B11: Hospitalar | C11: Hospitals | D11: 388455 | E11: 96789 | F11: 141586 | G11: 148774 | H11: 147540 | I11: 534689 | J11: 204629 | K11: 297544 | L11: 187962 | M11: 133904 | N11: 824039 | O11: 153279 | P11: 143882 | Q11: 140804 | R11: 134605 | S11: 572570 | T11: 108140 | U11: 101566 | V11: 104565 | W11: 93292 | X11: 407563 | Y11: 108044 | Z11: 110691 | AA11: 97164 | AB11: 94917 | AC11: 410816 | AD11: 98851 | AE11: 100425 | AF11: 199276
B12: Licitação | C12: Public Sctor | D12: 152560 | E12: 35934 | F12: 61239 | G12: 59823 | H12: 53319 | I12: 210315 | J12: 57646 | K12: 106732 | L12: 88720 | M12: 88626 | N12: 341724 | O12: 89947 | P12: 105736 | Q12: 94073 | R12: 78224 | S12: 367980 | T12: 89247 | U12: 101651 | V12: 97749 | W12: 101583 | X12: 390230 | Y12: 89923 | Z12: 117019 | AA12: 105245 | AB12: 84180 | AC12: 396367 | AD12: 92172 | AE12: 105105 | AF12: 197277
B13: Oncologia | C13: Oncologic | D13: 161710 | E13: 45943 | F13: 39021 | G13: 39408 | H13: 43645 | I13: 168017 | J13: 36882 | K13: 34862 | L13: 41045 | M13: 37508 | N13: 150297 | O13: 46519 | P13: 40733 | Q13: 41340 | R13: 55992 | S13: 184584 | T13: 58697 | U13: 60395 | V13: 68088 | W13: 74838 | X13: 262018 | Y13: 72789 | Z13: 41767 | AA13: 58331 | AB13: 74650 | AC13: 247537 | AD13: 70733 | AE13: 69426 | AF13: 140159
B14: Terceiros | C14: Third Party | D14: 244778 | E14: 61679 | F14: 73092 | G14: 78608 | H14: 57349 | I14: 270728 | J14: 84274 | K14: 36853 | L14: 61893 | M14: 53108 | N14: 236128 | O14: 55757 | P14: 48608 | Q14: 42293 | R14: 55206 | S14: 201864 | T14: 75092 | U14: 87638 | V14: 80186 | W14: 60137 | X14: 303053 | Y14: 68828 | Z14: 100050 | AA14: 99614 | AB14: 128908 | AC14: 397400 | AD14: 80480 | AE14: 100384 | AF14: 180864
B15: Serviços Terceiros | C15: Outsourcing Services | D15: 192779 | E15: 44619 | F15: 59950 | G15: 63526 | H15: 43455 | I15: 211550 | J15: 65367 | K15: 26863 | L15: 47206 | M15: 38321 | N15: 177757 | O15: 38546 | P15: 30915 | Q15: 42231 | R15: 52545 | S15: 164237 | T15: 51023 | U15: 61198 | V15: 54442 | W15: 29849 | X15: 196512 | Y15: 43776 | Z15: 67970 | AA15: 65538 | AB15: 92368 | AC15: 269652 | AD15: 49990 | AE15: 68042 | AF15: 118032
B16: Veterinária | C16: Veterinary | D16: 51999 | E16: 17060 | F16: 13142 | G16: 15082 | H16: 13894 | I16: 59178 | J16: 18907 | K16: 9990 | L16: 14687 | M16: 14787 | N16: 58371 | O16: 17211 | P16: 17693 | Q16: 62 | R16: 2661 | S16: 37627 | T16: 24069 | U16: 26440 | V16: 25744 | W16: 30288 | X16: 106541 | Y16: 25052 | Z16: 32080 | AA16: 34076 | AB16: 36540 | AC16: 127748 | AD16: 30490 | AE16: 32342 | AF16: 62832
B17: Exportação | C17: Exports | D17: 6489 | E17: 1399 | F17: 1524 | G17: 164 | H17: 1120 | I17: 4207 | J17: 306 | K17: 1806 | L17: 1966 | M17: 1341 | N17: 5419 | O17: 796 | P17: 248 | Q17: 2111 | R17: 1891 | S17: 5046 | T17: 502 | U17: 1671 | V17: 1907 | W17: 2139 | X17: 6219 | Y17: 3691 | Z17: 3525 | AA17: 1836 | AB17: 3380 | AC17: 12432 | AD17: 2491 | AE17: 2084 | AF17: 4575
B18: Total Receita Líquida | C18: Total Net Revenue | D18: 4828144 | E18: 1526771 | F18: 1205182 | G18: 1352996 | H18: 1638242 | I18: 5723191 | J18: 1923965 | K18: 1499310 | L18: 1667526 | M18: 1977026 | N18: 7067827 | O18: 2176325 | P18: 1675182 | Q18: 2016565 | R18: 2138208 | S18: 8006280 | T18: 2430944 | U18: 1908151 | V18: 2241852 | W18: 2539729 | X18: 9120676 | Y18: 2830633 | Z18: 2353182 | AA18: 2814355 | AB18: 2975148 | AC18: =AC7+AC8+AC9+AC10+AC14+AC17 -> 10973318 | AD18: =AD7+AD8+AD9+AD10+AD14+AD17 -> 3059428 | AE18: =AE7+AE8+AE9+AE10+AE14+AE17 -> 2713852 | AF18: 5773280
B20: Receita Líquida - Geografia | C20: Net Revenue (Geography)
B21: (R$'000) | C21: (R$'000)
B22: Brasil | C22: Brazil | D22: 4292806 | I22: 4948677 | J22: 1675684 | K22: 1224998 | L22: 1376976 | M22: 1658180 | N22: 5935838 | O22: 1869084 | P22: 1348797 | Q22: 1667434 | R22: 1820791 | S22: 6706106 | T22: 2031613 | U22: 1478537 | V22: 1805522 | W22: 1993352 | X22: 7309024 | Y22: 2220979 | Z22: 1634773 | AA22: 2054081 | AB22: 2194914.33 | AC22: 8104747.33 | AD22: 2368365.533 | AE22: 1942199 | AF22: =SUM(AD22:AE22) -> 4310564.533
B23: Outros Países | C23: Other Countries | D23: 535338 | I23: 774514 | J23: 248281 | K23: 274312 | L23: 290550 | M23: 318846 | N23: 1131989 | O23: 307241 | P23: 326385 | Q23: 349131 | R23: 317417 | S23: 1300174 | T23: 399331 | U23: 429614 | V23: 436330 | W23: 546377 | X23: 1811652 | Y23: 609654 | Z23: 718409 | AA23: 760274 | AB23: 780233.9079 | AC23: 2868570.908 | AD23: 691062.0266 | AE23: 771652.6172 | AF23: =SUM(AD23:AE23) -> 1462714.644

Sheet 5. Dados | Info
F1: Voltar | Back
B2: Dados da Companhia | Company Info
B8: Eurofarma LaboratóriosS.A. | C8: Eurofarma LaboratóriosS.A. | D8: CNPJ 61.190.096/0001-92
B9: Data de constituição | C9: Establishment date | D9: 1962-07-04
B10: Auditor | C10: Audit company | D10: KPMG
B11: E-mail RI | C11: IR E-mail | D11: ri@eurofarma.com
B12: Telefone RI | C12: IR phone number | D12: +55 11 5090-8570
B13: Site RI | C13: IR Website | D13: ri.eurofarma.com.br

Sheet 6. Ressalva | Disclaimer
I1: Voltar | Back
B2: Ressalva | Disclaimer
B7: Esta planilha tem como único propósito fornecer informações e não constitui ou deve ser interpretada como uma oferta ou solicitação de compra ou venda de qualquer instrumento financeiro ou de participação em qualquer estratégia de negócio específica. Todas as opiniões aqui contidas foram elaboradas dentro do contexto e conjuntura no momento em que a planilha foi editada, podendo mudar sem aviso prévio, bem como não levam em consideração os objetivos de investimento, a situação financeira ou as necessidades específicas de determinado investidor.
B9: This spreadsheet is for the sole purpose of providing information and does not constitute or should be considered an offer or solicitation to buy or sell any financial instrument or to participate in any specific business strategy. All opinions contained herein were prepared within the context and circumstances at the time the presentation was published, and may change without prior notice, as well as do not take into account the investment objectives, financial situation or specific needs of a particular investor.
